fUST/lending_fUST_20251013
["ID","MTS","AMOUNT","RATE_DAILY","PERIOD"]
[391100493,1760340638728,-84766.81237588,0.0002599,2]
[391100517,1760340640342,-366.3031203,0.0002599,2]
[391100536,1760340643759,-749.67025643,0.0002599,2]
[391100537,1760340643770,-240.0,0.00026,2]
[391100538,1760340643781,-2328.62750453,0.00026,30]
[391100539,1760340643794,-182.47968223,0.0002615,2]
[391100540,1760340643805,-182.47968223,0.00026419,2]
[391100541,1760340643816,-262.5,0.000266,2]
[391100542,1760340643827,-236.32012864,0.0002662,2]
[391100543,1760340643839,-330.148539,0.00026676,2]
[391100544,1760340643849,-218.28544426,0.00026678,2]
[391100545,1760340643861,-1400.0,0.00026682,2]
[391100546,1760340643871,-182.47968223,0.00026689,2]
[391100547,1760340643883,-203.90349356,0.00026773,2]
[391100548,1760340643894,-501.73234664,0.00026773,2]
[391100549,1760340643905,-500.83987267,0.00026773,2]
[391100550,1760340643917,-265.555701,0.00026773,2]
[391100551,1760340643928,-342.71388643,0.00026773,2]
[391100552,1760340643940,-501.93642954,0.00026773,2]
[391100553,1760340643952,-500.5103602,0.00026773,2]
[391100554,1760340643964,-52282.51899041,0.00026778,2]
[391100694,1760341832435,-248.29614296,0.000238,2]
[391100696,1760341832445,-312.4280579,0.000238,2]
[391100699,1760341832454,-150.0,0.000238,2]
[391100701,1760341832465,-172.5,0.000244,2]
[391100702,1760341832476,-150.0,0.00024425,2]
[391100705,1760341832487,-1200.0,0.0002449,2]
[391100707,1760341832496,-163.47749172,0.00024658,2]
[391100709,1760341832507,-212.8888147,0.00024722,2]
[391100711,1760341832516,-195.0,0.00025,2]
[391100712,1760341832526,-1000.0,0.00025416,30]
[391100715,1760341832536,-1200.0,0.00025586,2]
[391100717,1760341832547,-150.0,0.00025588,2]
[391100719,1760341832556,-217.5,0.000256,2]
[391100721,1760341832565,-240.0,0.000262,2]
[391100722,1760341832575,-4979.51999952,0.00026558,2]
[391100724,1760341832584,-1155.0,0.00026573,2]
[391100727,1760341832594,-223.0,0.00026655,2]
[391100729,1760341832604,-300.0,0.00026656,2]
[391100730,1760341832613,-500.0,0.00026657,4]
[391100731,1760341832622,-500.0,0.00026657,4]
[391100732,1760341832631,-500.0,0.00026657,4]
[391100734,1760341832640,-500.0,0.00026657,4]
[391100736,1760341832648,-500.0,0.00026657,4]
[391100738,1760341832657,-500.0,0.00026657,4]
[391100740,1760341832666,-500.0,0.00026657,4]
[391100742,1760341832675,-500.0,0.00026657,4]
[391100743,1760341832684,-500.0,0.00026657,4]
[391100744,1760341832692,-500.0,0.00026657,4]
[391100745,1760341832701,-500.0,0.00026657,4]
[391100746,1760341832710,-500.0,0.00026657,4]
[391100747,1760341832719,-506.96001929,0.00026657,4]
[391100748,1760341832728,-500.0,0.00026657,4]
[391100749,1760341832737,-500.0,0.00026657,4]
[391100750,1760341832746,-481.17676727,0.00026657,4]
[391100751,1760341832755,-500.0,0.00026657,4]
[391100752,1760341832764,-500.0,0.00026657,4]
[391100753,1760341832774,-317.92220688,0.00026657,4]
[391100754,1760341832783,-500.0,0.00026657,4]
[391100755,1760341832791,-402.6973604,0.00026657,4]
[391100756,1760341832800,-500.0,0.00026657,4]
[391100757,1760341832810,-139.16116801,0.00026657,4]
[391100758,1760341832878,-474.93648235,0.00026657,4]
[391100759,1760341832889,-500.0,0.00026657,4]
[391100760,1760341832901,-500.0,0.00026657,4]
[391100761,1760341832911,-500.0,0.00026657,4]
[391100762,1760341832921,-500.0,0.00026657,4]
[391100763,1760341832931,-500.0,0.00026657,4]
[391100765,1760341832940,-500.0,0.00026657,4]
[391100767,1760341832949,-500.0,0.00026657,4]
[391100769,1760341832958,-500.0,0.00026657,4]
[391100771,1760341832968,-500.0,0.00026657,4]
[391100773,1760341832977,-500.0,0.00026657,4]
[391100775,1760341832986,-565.69757788,0.00026657,4]
[391100777,1760341832995,-201.58512771,0.00026657,4]
[391100779,1760341833004,-4348.78034696,0.00026658,2]
[391100781,1760341833015,-1527.51103047,0.00026658,2]
[391100840,1760341838363,-500.0,0.00026657,4]
[391100842,1760341838375,-500.0,0.00026657,4]
[391100844,1760341838385,-500.0,0.00026657,4]
[391100846,1760341838394,-500.0,0.00026657,4]
[391100848,1760341838403,-500.0,0.00026657,4]
[391100850,1760341838412,-503.93104332,0.00026657,4]
[391100852,1760341838421,-31879.3445254,0.00026658,2]
[391100854,1760341838432,-405.65860015,0.00026658,2]
[391100856,1760341838443,-4299.38394882,0.00026658,2]
[391100939,1760341846498,-4168.7,0.00026657,2]
[391100940,1760341846509,-4168.7,0.00026657,2]
[391100941,1760341846519,-4168.7,0.00026657,2]
[391100942,1760341846530,-4168.7,0.00026657,2]
[391100943,1760341846541,-4168.7,0.00026657,2]
[391100944,1760341846550,-4168.7,0.00026657,2]
[391100945,1760341846559,-4168.7,0.00026657,2]
[391100946,1760341846568,-4168.7,0.00026657,2]
[391100947,1760341846579,-4168.7,0.00026657,2]
[391100948,1760341846589,-4168.7,0.00026657,2]
[391100949,1760341846599,-4168.7,0.00026657,2]
[391100950,1760341846608,-4168.7,0.00026657,2]
[391100951,1760341846618,-4168.7,0.00026657,2]
[391100952,1760341846629,-4168.7,0.00026657,2]
[391100953,1760341846638,-4168.7,0.00026657,2]
[391100955,1760341846647,-4168.7,0.00026657,2]
[391100956,1760341846658,-4168.7,0.00026657,2]
[391100957,1760341846667,-4168.7,0.00026657,2]
[391100958,1760341846675,-4168.7,0.00026657,2]
[391100959,1760341846684,-4168.7,0.00026657,2]
[391100960,1760341846694,-4168.7,0.00026657,2]
[391100961,1760341846703,-4168.7,0.00026657,2]
[391100962,1760341846713,-4168.7,0.00026657,2]
[391100963,1760341846722,-4168.9,0.00026657,2]
[391100964,1760341846732,-149993.0974102,0.00026658,2]
[391100965,1760341846741,-2395.9679004,0.00026658,2]
[391100966,1760341846750,-165.613,0.00026667,14]
[391100967,1760341846759,-500.0,0.00026667,4]
[391100968,1760341846768,-399.29729644,0.00026667,4]
[391100969,1760341846778,-500.0,0.00026667,4]
[391100970,1760341846787,-500.0,0.00026667,4]
[391100971,1760341846797,-500.0,0.00026667,4]
[391100972,1760341846806,-212.75256933,0.00026667,4]
[391100973,1760341846815,-500.0,0.00026667,4]
[391100974,1760341846825,-399.30214626,0.00026667,4]
[391100975,1760341846834,-229.12297688,0.00026667,4]
[391100976,1760341846843,-500.0,0.00026667,4]
[391100977,1760341846853,-500.0,0.00026667,4]
[391100978,1760341846862,-500.0,0.00026667,4]
[391100979,1760341846871,-500.0,0.00026667,4]
[391100980,1760341846880,-369.63657173,0.00026667,4]
[391100981,1760341846890,-500.0,0.00026667,4]
[391100982,1760341846900,-500.0,0.00026667,4]
[391100983,1760341846909,-500.0,0.00026667,4]
[391100984,1760341846919,-500.0,0.00026667,4]
[391100985,1760341846928,-482.45146892,0.00026667,4]
[391100986,1760341846938,-500.0,0.00026667,4]
[391100987,1760341846947,-500.0,0.00026667,4]
[391100988,1760341846956,-500.0,0.00026667,4]
[391100989,1760341846965,-500.0,0.00026667,4]
[391100990,1760341846974,-500.0,0.00026667,4]
[391100991,1760341846983,-500.0,0.00026667,4]
[391100992,1760341846992,-434.42514959,0.00026667,4]
[391100993,1760341847001,-217.57429026,0.00026667,4]
[391100994,1760341847011,-500.0,0.00026667,4]
[391100995,1760341847020,-500.0,0.00026667,4]
[391100996,1760341847030,-500.0,0.00026667,4]
[391100997,1760341847039,-500.0,0.00026667,4]
[391100998,1760341847048,-500.0,0.00026667,4]
[391100999,1760341847058,-338.35455134,0.00026667,4]
[391101000,1760341847068,-511.17143906,0.00026667,4]
[391101001,1760341847077,-500.0,0.00026668,4]
[391101002,1760341847087,-500.0,0.00026668,4]
[391101003,1760341847097,-500.0,0.00026668,4]
[391101004,1760341847106,-500.0,0.00026668,4]
[391101005,1760341847115,-500.0,0.00026668,4]
[391101006,1760341847125,-500.0,0.00026668,4]
[391101007,1760341847134,-500.0,0.00026668,4]
[391101008,1760341847144,-208.32246007,0.00026668,4]
[391101009,1760341847154,-506.08850832,0.00026668,4]
[391101010,1760341847163,-500.0,0.00026668,4]
[391101011,1760341847172,-500.0,0.00026668,4]
[391101012,1760341847181,-500.0,0.00026668,4]
[391101013,1760341847191,-500.0,0.00026668,4]
[391101014,1760341847200,-156.27665101,0.00026668,4]
[391101015,1760341847209,-502.08369144,0.00026668,4]
[391101016,1760341847218,-1111.2,0.00026668,4]
[391101017,1760341847227,-1111.2,0.00026668,4]
[391101018,1760341847236,-1111.2,0.00026668,4]
[391101019,1760341847245,-1111.2,0.00026668,4]
[391101020,1760341847254,-1111.2,0.00026668,4]
[391101021,1760341847263,-1111.2,0.00026668,4]
[391101022,1760341847272,-1111.2,0.00026668,4]
[391101023,1760341847282,-1111.2,0.00026668,4]
[391101024,1760341847291,-582.84631982,0.00026668,4]
[391101025,1760341847300,-1111.2,0.00026668,4]
[391101026,1760341847309,-1111.2,0.00026668,4]
[391101027,1760341847318,-1111.2,0.00026668,4]
[391101028,1760341847327,-1111.2,0.00026668,4]
[391101029,1760341847336,-1111.2,0.00026668,4]
[391101030,1760341847346,-1111.2,0.00026668,4]
[391101031,1760341847357,-1111.2,0.00026668,4]
[391101032,1760341847367,-1111.2,0.00026668,4]
[391101033,1760341847378,-1111.2,0.00026668,4]
[391101034,1760341847388,-1111.2,0.00026668,4]
[391101035,1760341847398,-1111.2,0.00026668,4]
[391101036,1760341847407,-1111.2,0.00026668,4]
[391101037,1760341847416,-1111.2,0.00026668,4]
[391101038,1760341847425,-1111.2,0.00026668,4]
[391101039,1760341847435,-1111.2,0.00026668,4]
[391101040,1760341847446,-1111.28308722,0.00026668,4]
[391101041,1760341847455,-500.0,0.00026668,4]
[391101042,1760341847468,-500.0,0.00026668,4]
[391101043,1760341847479,-500.0,0.00026668,4]
[391101044,1760341847489,-625.78128941,0.00026668,4]
[391101045,1760341847497,-500.0,0.00026668,4]
[391101046,1760341847612,-500.0,0.00026668,4]
[391101047,1760341847622,-500.0,0.00026668,4]
[391101048,1760341847631,-500.0,0.00026668,4]
[391101049,1760341847640,-500.0,0.00026668,4]
[391101050,1760341847649,-500.0,0.00026668,4]
[391101051,1760341847658,-500.0,0.00026668,4]
[391101052,1760341847667,-500.0,0.00026668,4]
[391101053,1760341847676,-503.83133958,0.00026668,4]
[391101054,1760341847686,-500.0,0.00026668,4]
[391101055,1760341847696,-496.55507756,0.00026668,4]
[391101056,1760341847706,-500.0,0.00026668,4]
[391101057,1760341847715,-213.3086088,0.00026668,4]
[391101058,1760341847724,-1000.68012391,0.00026668,2]
[391101059,1760341847735,-557.51359199,0.00026668,4]
[391101060,1760341847745,-491.06043811,0.00026668,4]
[391101061,1760341847753,-503.67358117,0.00026668,4]
[391101062,1760341847762,-7501.07,0.00026668,4]
[391101063,1760341847773,-7501.07,0.00026668,4]
[391101064,1760341847783,-7501.07,0.00026668,4]
[391101065,1760341847792,-7501.07,0.00026668,4]
[391101066,1760341847801,-7501.07,0.00026668,4]
[391101067,1760341847811,-7501.07,0.00026668,4]
[391101068,1760341847821,-7501.07,0.00026668,4]
[391101069,1760341847831,-7501.07,0.00026668,4]
[391101070,1760341847841,-7501.07,0.00026668,4]
[391101071,1760341847850,-7501.07,0.00026668,4]
[391101072,1760341847859,-7501.07,0.00026668,4]
[391101073,1760341847868,-7501.07,0.00026668,4]
[391101074,1760341847878,-487.42854932,0.00026668,4]
[391101075,1760341847888,-7501.07,0.00026668,4]
[391101076,1760341847897,-7501.07,0.00026668,4]
[391101077,1760341847907,-7501.07,0.00026668,4]
[391101078,1760341847916,-7501.07,0.00026668,4]
[391101079,1760341847926,-7501.07,0.00026668,4]
[391101080,1760341847935,-7501.07,0.00026668,4]
[391101081,1760341847944,-7501.07,0.00026668,4]
[391101082,1760341847953,-7501.07,0.00026668,4]
[391101083,1760341847963,-7501.07,0.00026668,4]
[391101084,1760341847972,-7501.07,0.00026668,4]
[391101085,1760341847981,-7501.07,0.00026668,4]
[391101086,1760341847991,-7501.20080279,0.00026668,4]
[391101087,1760341848000,-500.0,0.00026668,4]
[391101088,1760341848009,-500.0,0.00026668,4]
[391101089,1760341848018,-500.0,0.00026668,4]
[391101090,1760341848027,-500.0,0.00026668,4]
[391101091,1760341848036,-480.6447002,0.00026668,4]
[391101092,1760341848046,-500.0,0.00026668,4]
[391101093,1760341848055,-500.0,0.00026668,4]
[391101094,1760341848064,-500.0,0.00026668,4]
[391101095,1760341848073,-500.0,0.00026668,4]
[391101096,1760341848082,-500.0,0.00026668,4]
[391101097,1760341848091,-500.0,0.00026668,4]
[391101098,1760341848102,-500.0,0.00026668,4]
[391101099,1760341848112,-500.0,0.00026668,4]
[391101100,1760341848123,-205.46237567,0.00026668,4]
[391101101,1760341848134,-171.83311081,0.00026668,4]
[391101102,1760341848144,-705.74,0.00026668,3]
[391101103,1760341848153,-705.74,0.00026668,3]
[391101104,1760341848162,-705.74,0.00026668,3]
[391101105,1760341848171,-705.74,0.00026668,3]
[391101106,1760341848182,-705.74,0.00026668,3]
[391101107,1760341848191,-705.74,0.00026668,3]
[391101108,1760341848203,-705.74,0.00026668,3]
[391101109,1760341848213,-705.74,0.00026668,3]
[391101110,1760341848225,-705.74,0.00026668,3]
[391101111,1760341848235,-705.74,0.00026668,3]
[391101112,1760341848245,-705.74,0.00026668,3]
[391101113,1760341848255,-705.74,0.00026668,3]
[391101114,1760341848266,-705.74,0.00026668,3]
[391101115,1760341848276,-705.74,0.00026668,3]
[391101116,1760341848285,-705.74,0.00026668,3]
[391101117,1760341848295,-705.74,0.00026668,3]
[391101118,1760341848304,-705.74,0.00026668,3]
[391101119,1760341848313,-705.74,0.00026668,3]
[391101120,1760341848323,-705.74,0.00026668,3]
[391101121,1760341848332,-705.74,0.00026668,3]
[391101122,1760341848342,-705.74,0.00026668,3]
[391101123,1760341848351,-705.74,0.00026668,3]
[391101124,1760341848361,-705.74,0.00026668,3]
[391101125,1760341848371,-705.94289115,0.00026668,3]
[391101126,1760341848382,-184.43033477,0.00026668,4]
[391101127,1760341848392,-500.0,0.00026668,4]
[391101128,1760341848400,-500.0,0.00026668,4]
[391101129,1760341848411,-627.07879416,0.00026668,4]
[391101130,1760341848422,-2479.53,0.00026668,4]
[391101131,1760341848432,-2479.53,0.00026668,4]
[391101132,1760341848443,-2479.53,0.00026668,4]
[391101133,1760341848453,-2479.53,0.00026668,4]
[391101134,1760341848464,-2479.53,0.00026668,4]
[391101135,1760341848476,-2479.53,0.00026668,4]
[391101136,1760341848486,-2479.53,0.00026668,4]
[391101137,1760341848495,-2479.53,0.00026668,4]
[391101138,1760341848507,-2479.53,0.00026668,4]
[391101139,1760341848516,-2479.53,0.00026668,4]
[391101140,1760341848526,-2479.53,0.00026668,4]
[391101141,1760341848535,-2479.53,0.00026668,4]
[391101142,1760341848547,-2479.53,0.00026668,4]
[391101143,1760341848555,-2479.53,0.00026668,4]
[391101144,1760341848564,-2479.53,0.00026668,4]
[391101145,1760341848573,-2479.53,0.00026668,4]
[391101146,1760341848582,-2479.53,0.00026668,4]
[391101147,1760341848592,-2479.53,0.00026668,4]
[391101148,1760341848602,-2479.53,0.00026668,4]
[391101149,1760341848611,-2479.53,0.00026668,4]
[391101150,1760341848621,-2479.53,0.00026668,4]
[391101151,1760341848631,-2479.53,0.00026668,4]
[391101152,1760341848643,-2479.53,0.00026668,4]
[391101153,1760341848652,-2479.57534421,0.00026668,4]
[391101154,1760341848661,-500.0,0.00026668,4]
[391101155,1760341848670,-500.0,0.00026668,4]
[391101156,1760341848680,-500.0,0.00026668,4]
[391101157,1760341848689,-244.35134691,0.00026668,4]
[391101158,1760341848700,-190.40376391,0.00026668,4]
[391101159,1760341848711,-2310.05,0.00026668,4]
[391101160,1760341848721,-2310.05,0.00026668,4]
[391101161,1760341848732,-2310.05,0.00026668,4]
[391101162,1760341848742,-2310.05,0.00026668,4]
[391101163,1760341848751,-2310.05,0.00026668,4]
[391101164,1760341848760,-2310.05,0.00026668,4]
[391101165,1760341848770,-2310.05,0.00026668,4]
[391101166,1760341848785,-2310.05,0.00026668,4]
[391101167,1760341848795,-2310.05,0.00026668,4]
[391101168,1760341848805,-2310.05,0.00026668,4]
[391101169,1760341848814,-2310.05,0.00026668,4]
[391101170,1760341848823,-2310.05,0.00026668,4]
[391101171,1760341848833,-2310.05,0.00026668,4]
[391101172,1760341848843,-2310.05,0.00026668,4]
[391101173,1760341848854,-2310.05,0.00026668,4]
[391101174,1760341848863,-2310.05,0.00026668,4]
[391101175,1760341848872,-2310.05,0.00026668,4]
[391101176,1760341848881,-2310.05,0.00026668,4]
[391101177,1760341848891,-2310.05,0.00026668,4]
[391101178,1760341848902,-2310.05,0.00026668,4]
[391101179,1760341848912,-2310.05,0.00026668,4]
[391101180,1760341848923,-2310.05,0.00026668,4]
[391101181,1760341848934,-2310.05,0.00026668,4]
[391101182,1760341848945,-2310.25040971,0.00026668,4]
[391101183,1760341848955,-500.0,0.00026668,4]
[391101184,1760341848965,-500.0,0.00026668,4]
[391101185,1760341848974,-500.0,0.00026668,4]
[391101186,1760341848984,-504.48159253,0.00026668,4]
[391101187,1760341848993,-616.37206597,0.00026668,4]
[391101188,1760341849002,-500.0,0.00026668,4]
[391101189,1760341849011,-500.0,0.00026668,4]
[391101190,1760341849020,-501.76155794,0.00026668,4]
[391101191,1760341849030,-520.0,0.00026668,3]
[391101192,1760341849039,-520.0,0.00026668,3]
[391101193,1760341849048,-520.0,0.00026668,3]
[391101194,1760341849058,-96226.8879312,0.00026668,2]
[391101195,1760341849067,-4791.9358008,0.00026668,2]
[391101196,1760341849077,-370000.0,0.00026678,2]
[391101197,1760341849086,-1200.0,0.00026682,2]
[391101198,1760341849096,-150.0,0.00026752,2]
[391101199,1760341849106,-168.0,0.00027184,2]
[391101200,1760341849115,-300.0,0.00027313,30]
[391101201,1760341849124,-300.0,0.00027313,30]
[391101202,1760341849133,-300.0,0.00027313,30]
[391101203,1760341849143,-300.0,0.00027313,30]
[391101204,1760341849152,-300.0,0.00027313,30]
[391101205,1760341849161,-300.0,0.00027313,30]
[391101206,1760341849170,-300.0,0.00027313,30]
[391101207,1760341849179,-300.0,0.00027313,30]
[391101208,1760341849189,-300.0,0.00027313,30]
[391101209,1760341849198,-300.0,0.00027313,30]
[391101210,1760341849207,-300.0,0.00027313,30]
[391101211,1760341849216,-300.0,0.00027313,30]
[391101212,1760341849225,-300.0,0.00027313,30]
[391101213,1760341849234,-300.0,0.00027313,30]
[391101214,1760341849243,-300.0,0.00027313,30]
[391101215,1760341849252,-600.0,0.00027313,30]
[391101216,1760341849261,-999.0,0.00027397,2]
[391101217,1760341849270,-239.90914595,0.00027397,30]
[391101218,1760341849279,-598.9919751,0.00027424,2]
[391101219,1760341849288,-4192.9438257,0.00027434,2]
[391101220,1760341849297,-350494.153,0.00027444,2]
[391101221,1760341849306,-253.02497259,0.00027451,2]
[391101222,1760341849316,-981.0,0.00027451,2]
[391101223,1760341849325,-2160.0,0.00027451,2]
[391101224,1760341849333,-631.0,0.00027451,2]
[391101225,1760341849343,-4198.0,0.00027451,2]
[391101226,1760341849352,-411.0,0.00027451,2]
[391101227,1760341849361,-416.952,0.00027451,2]
[391101228,1760341849371,-212.785,0.00027451,2]
[391101229,1760341849380,-22885.17,0.000275,7]
[391101230,1760341849389,-1541.42,0.000275,2]
[391101231,1760341849398,-4140.25,0.000275,2]
[391101232,1760341849407,-402.34485587,0.000275,7]
[391101233,1760341849416,-999.0,0.00027671,4]
[391101234,1760341849425,-999.0,0.00027671,4]
[391101235,1760341849434,-999.0,0.00027671,4]
[391101236,1760341849442,-168.0,0.00027744,2]
[391101237,1760341849452,-168.0,0.00027745,2]
[391101238,1760341849462,-1200.0,0.00027778,7]
[391101239,1760341849473,-1000.0,0.000278,10]
[391101240,1760341849482,-200.0,0.000278,120]
[391101241,1760341849490,-200.1288548,0.00027808,30]
[391101242,1760341849499,-160.0,0.000279,2]
[391101243,1760341849509,-150.0,0.00027915,2]
[391101244,1760341849518,-999.0,0.00027945,6]
[391101245,1760341849527,-999.0,0.00027945,6]
[391101246,1760341849536,-999.0,0.00027945,6]
[391101247,1760341849547,-200.0,0.00028,120]
[391101248,1760341849556,-168.0,0.00028017,2]
[391101249,1760341849565,-168.0,0.00028051,2]
[391101250,1760341849573,-168.0,0.00028124,2]
[391101251,1760341849582,-999.0,0.00028219,8]
[391101252,1760341849591,-999.0,0.00028219,8]
[391101253,1760341849600,-999.0,0.00028219,8]
[391101254,1760341849609,-168.0,0.00028272,2]
[391101255,1760341849618,-153.0,0.00028287,2]
[391101256,1760341849627,-153.0,0.00028287,2]
[391101257,1760341849636,-153.0,0.00028287,2]
[391101258,1760341849645,-153.0,0.00028287,2]
[391101259,1760341849654,-168.0,0.00028322,2]
[391101260,1760341849664,-168.0,0.00028334,7]
[391101261,1760341849673,-168.0,0.00028394,2]
[391101262,1760341849684,-260.0,0.00028448,2]
[391101263,1760341849694,-999.0,0.00028493,10]
[391101264,1760341849703,-999.0,0.00028493,10]
[391101265,1760341849714,-1126.52,0.00028493,10]
[391101266,1760341849724,-168.0,0.0002855,2]
[391101267,1760341849734,-168.0,0.00028588,2]
[391101268,1760341849744,-168.0,0.00028681,2]
[391101269,1760341849753,-168.0,0.00028733,2]
[391101270,1760341849763,-168.0,0.00028751,2]
[391101271,1760341849772,-952.47,0.00028767,12]
[391101272,1760341849781,-350.24,0.00028767,12]
[391101273,1760341849790,-174.76355283,0.00028777,120]
[391101274,1760341849799,-420.0,0.00028828,2]
[391101275,1760341849808,-360.0,0.00028996,2]
[391101276,1760341849818,-21966.6261,0.00029,5]
[391101277,1760341849827,-150.0,0.00029078,2]
[391101278,1760341849837,-601.52537767,0.00029148,2]
[391101279,1760341849847,-3047.0,0.000293,60]
[391101280,1760341849856,-999.0,0.0002933,2]
[391101281,1760341849865,-999.0,0.0002933,2]
[391101282,1760341849875,-2978.69979751,0.00029373,2]
[391101283,1760341849886,-168.36747694,0.00029389,7]
[391101284,1760341849896,-2081.9186061,0.000294,2]
[391101285,1760341849906,-168.0,0.00029401,2]
[391101286,1760341849915,-1200.0,0.00029422,7]
[391101287,1760341849923,-1456916.97888776,0.00029444,2]
[391101288,1760342295974,10000.0,0.00020971,2]
[391101289,1760342317457,0.01,0.00020971,2]
[391101290,1760342317479,4999.99,0.00020971,2]
[391101291,1760342331945,5000.02,0.00020971,2]
[391101292,1760342331968,38.98,0.00020971,2]
[391101323,1760343032546,-414.42472416,0.000253,2]
[391101325,1760343032555,-195.68826266,0.0002643,2]
[391101327,1760343032567,-404.31173734,0.0002643,2]
[391101329,1760343032577,-558.30851301,0.00026631,2]
[391101331,1760343032588,-2109.75812153,0.00026631,2]
[391101333,1760343032600,-417.16503418,0.00026631,2]
[391101479,1760343038724,-351.91826975,0.00026631,2]
[391101480,1760343038786,-1533.35210339,0.00026631,2]
[391101481,1760343038798,-604.25966608,0.00026631,2]
[391101482,1760343038810,-584.73757764,0.00026631,2]
[391101535,1760343040682,-14329.65478756,0.00026631,2]
[391101537,1760343040692,-210.63760204,0.00026631,2]
[391101539,1760343040701,-250.0,0.00026631,2]
[391101541,1760343040711,-164.14619555,0.00026631,2]
[391101544,1760343040728,-151.0,0.00026631,2]
[391101546,1760343040739,-270.52925111,0.00026631,2]
[391101548,1760343040749,-151.0,0.00026631,2]
[391101551,1760343040758,-151.0,0.00026631,2]
[391101553,1760343040767,-151.0,0.00026631,2]
[391101555,1760343040776,-151.0,0.00026631,2]
[391101557,1760343040785,-151.0,0.00026631,2]
[391101559,1760343040796,-151.0,0.00026631,2]
[391101561,1760343040808,-250.0,0.00026631,2]
[391101563,1760343040817,-151.0,0.00026631,2]
[391101565,1760343040827,-250.0,0.00026631,2]
[391101567,1760343040836,-151.0,0.00026631,2]
[391101569,1760343040846,-250.0,0.00026631,2]
[391101571,1760343040855,-151.0,0.00026631,2]
[391101573,1760343040864,-250.0,0.00026631,2]
[391101575,1760343040876,-153.47558467,0.00026631,2]
[391101577,1760343040886,-250.0,0.00026631,2]
[391101579,1760343040895,-250.0,0.00026631,2]
[391101581,1760343040904,-151.0,0.00026631,2]
[391101583,1760343040914,-250.0,0.00026631,2]
[391101585,1760343040924,-151.0,0.00026631,2]
[391101587,1760343040933,-250.0,0.00026631,2]
[391101589,1760343040943,-290.42454388,0.00026631,2]
[391101591,1760343040952,-151.0,0.00026631,2]
[391101593,1760343040961,-250.0,0.00026631,2]
[391101595,1760343040970,-151.0,0.00026631,2]
[391101597,1760343040979,-250.0,0.00026631,2]
[391101599,1760343040988,-151.0,0.00026631,2]
[391101601,1760343040997,-250.0,0.00026631,2]
[391101604,1760343041008,-250.0,0.00026631,2]
[391101606,1760343041017,-151.0,0.00026631,2]
[391101608,1760343041026,-151.0,0.00026631,2]
[391101610,1760343041035,-250.0,0.00026631,2]
[391101612,1760343041043,-250.0,0.00026631,2]
[391101614,1760343041053,-151.0,0.00026631,2]
[391101616,1760343041063,-250.0,0.00026631,2]
[391101618,1760343041073,-151.0,0.00026631,2]
[391101620,1760343041083,-250.0,0.00026631,2]
[391101622,1760343041092,-190.0947184,0.00026631,2]
[391101624,1760343041101,-250.0,0.00026631,2]
[391101626,1760343041111,-250.0,0.00026631,2]
[391101628,1760343041120,-300.0,0.00026639,2]
[391101629,1760343041129,-500.0,0.0002664,4]
[391101630,1760343041139,-500.0,0.0002664,4]
[391101632,1760343041148,-500.0,0.0002664,4]
[391101634,1760343041158,-500.0,0.0002664,4]
[391101636,1760343041167,-500.0,0.0002664,4]